bitfinex/quotes_BTCUSD_20250802
["timestamp","ask_amount","ask_price","bid_price","bid_amount"]
[1754147874175,0.00047995,113600.0,113590.0,1.32977721]
[1754147874635,0.00047995,113600.0,113590.0,1.33277721]
[1754147875114,0.00047995,113600.0,113590.0,1.33577721]
[1754147878441,0.00047995,113600.0,113590.0,1.36077721]
[1754147881096,0.00047995,113600.0,113590.0,1.54741721]
[1754147881311,0.00047995,113600.0,113590.0,1.57241721]
[1754147882635,0.00047995,113600.0,113590.0,1.84121721]
[1754147883284,0.00047995,113600.0,113590.0,1.81621721]
[1754147884349,0.00047995,113600.0,113590.0,1.16373465]
[1754147884597,0.00047995,113600.0,113590.0,1.48989593]
[1754147885842,0.00047995,113600.0,113590.0,1.81605721]
[1754147886095,0.00047995,113600.0,113590.0,1.35437593]
[1754147886300,0.00047995,113600.0,113590.0,1.48989593]
[1754147886741,0.00047995,113600.0,113590.0,1.35437593]
[1754147886959,0.00047995,113600.0,113590.0,1.48989593]
[1754147890006,0.00047995,113600.0,113590.0,1.48791593]
[1754147890222,0.00047995,113600.0,113590.0,1.49005593]
[1754147890644,0.00047995,113600.0,113590.0,1.60457721]
[1754147891834,1.91933928,113650.0,113620.0,0.3436103]
[1754147892043,0.00824623,113650.0,113630.0,0.46168128]
[1754147892261,0.00824623,113650.0,113640.0,0.13552]
[1754147892262,0.00839017,113650.0,113640.0,0.13552]
[1754147893091,0.04459312,113650.0,113640.0,0.13552]
[1754147893296,0.04659312,113650.0,113640.0,0.13552]
[1754147893505,0.01339017,113650.0,113640.0,0.13552]
[1754147893709,0.01039017,113650.0,113640.0,0.13552]
[1754147894065,0.01339017,113650.0,113640.0,0.13552]
[1754147894515,0.01139017,113650.0,113640.0,0.13552]
[1754147894876,0.01339017,113650.0,113640.0,0.13552]
[1754147896079,0.01339017,113650.0,113640.0,0.46168128]
[1754147896504,0.01339017,113650.0,113640.0,0.13552]
[1754147896920,0.04965761,113650.0,113640.0,0.13552]
[1754147898726,0.04966587,113650.0,113640.0,0.13552]
[1754147899668,0.06344244,113650.0,113640.0,0.13552]
[1754147901493,0.06344532,113650.0,113640.0,0.13552]
[1754147902760,0.3896066,113650.0,113620.0,0.16024636]
[1754147902978,0.3896066,113650.0,113630.0,0.13548]
[1754147903597,0.37583003,113650.0,113630.0,0.13548]
[1754147904046,0.37283003,113650.0,113630.0,0.13548]
[1754147904281,0.37583003,113650.0,113630.0,0.13548]
[1754147905106,0.37383003,113650.0,113630.0,0.13548]
[1754147905449,0.04766875,113650.0,113630.0,0.50310128]
[1754147905679,0.04966875,113650.0,113630.0,0.50628128]
[1754147905908,0.04966875,113650.0,113630.0,0.18012]
[1754147906128,0.04766875,113650.0,113630.0,0.50628128]
[1754147906599,0.04966875,113650.0,113630.0,0.18012]
[1754147906824,0.04966875,113650.0,113630.0,0.50628128]
[1754147907234,0.06344552,113650.0,113630.0,0.50628128]
[1754147907676,0.06344552,113650.0,113640.0,0.13548]
[1754147908321,0.3896068,113650.0,113640.0,0.13548]
[1754147908732,0.3866068,113650.0,113640.0,0.13548]
[1754147908959,0.3846068,113650.0,113640.0,0.13548]
[1754147909188,0.3876068,113650.0,113640.0,0.13548]
[1754147909393,0.3896068,113650.0,113640.0,0.13548]
[1754147910208,0.06344552,113650.0,113640.0,0.13548]
[1754147911159,0.06344552,113650.0,113640.0,0.13552]
[1754147912579,0.06344552,113650.0,113640.0,0.17698]
[1754147912985,0.06344552,113650.0,113640.0,0.18016]
[1754147913184,0.06345006,113650.0,113640.0,0.18016]
[1754147913997,0.06345006,113650.0,113640.0,0.17698]
[1754147914236,0.06345006,113650.0,113640.0,0.18016]
[1754147914418,0.06345006,113650.0,113640.0,0.50830128]
[1754147915187,0.06345006,113650.0,113640.0,0.18214]
[1754147916050,0.04967329,113650.0,113640.0,0.18214]
[1754147918998,0.05518794,113650.0,113640.0,0.18214]
[1754147919216,0.06345097,113650.0,113640.0,0.18214]
[1754147923130,0.38961225,113650.0,113640.0,0.13552]
[1754147925164,0.06345097,113650.0,113640.0,0.13552]
[1754147925387,0.38961225,113650.0,113640.0,0.13552]
[1754147925851,0.38961225,113650.0,113640.0,4e-05]
[1754147926694,0.38961225,113650.0,113640.0,0.0415]
[1754147929923,0.38961225,113650.0,113640.0,0.04468]
[1754147930985,0.52509225,113650.0,113640.0,0.04468]
[1754147931875,0.38961225,113650.0,113640.0,0.04468]
[1754147933269,0.06345097,113650.0,113640.0,0.04468]
[1754147933474,0.38961225,113650.0,113640.0,0.04468]
[1754147933720,0.06345097,113650.0,113640.0,0.04468]
[1754147934503,0.06345097,113650.0,113640.0,0.04666]
[1754147936362,0.38961225,113650.0,113640.0,0.04475]
[1754147937231,0.06345097,113650.0,113640.0,0.04475]
[1754147937456,0.38961225,113650.0,113640.0,0.04475]
[1754147937699,0.38961225,113650.0,113640.0,0.04689]
[1754147937915,0.06345097,113650.0,113640.0,0.04689]
[1754147941204,0.06345097,113650.0,113640.0,0.37305128]
[1754147941627,0.06345097,113650.0,113640.0,0.04689]
[1754147942030,0.06345097,113650.0,113640.0,0.37305128]
[1754147942899,0.06345072,113650.0,113640.0,0.37305128]
[1754147943785,0.04967416,113650.0,113640.0,0.37305128]
[1754147944310,0.04967416,113650.0,113640.0,0.3905003]
[1754147944550,0.04141138,113650.0,113640.0,0.3905003]
[1754147944806,0.04141138,113650.0,113640.0,0.80086147]
[1754147945027,0.04141138,113650.0,113640.0,0.14853891]
[1754147945278,0.04141138,113650.0,113640.0,0.50115819]
[1754147946258,0.03841138,113650.0,113640.0,0.50115819]
[1754147946963,0.05418674,113650.0,113640.0,0.04689]
[1754147947197,0.05218674,113650.0,113640.0,0.18233]
[1754147947689,0.06144304,113650.0,113640.0,0.18019]
[1754147947923,0.38760432,113650.0,113640.0,0.17694]
[1754147948169,0.42637075,113650.0,113640.0,4e-05]
[1754147948428,2.8505533,113650.0,113640.0,4e-05]
[1754147948695,3.09895653,113650.0,113640.0,4e-05]
[1754147948930,3.48659553,113650.0,113640.0,4e-05]
[1754147949159,3.53166687,113650.0,113640.0,4e-05]
[1754147949395,3.53166687,113650.0,113630.0,4e-05]
[1754147949396,0.58344338,113640.0,113630.0,4e-05]
[1754147949684,2.88851312,113640.0,113630.0,4e-05]
[1754147949910,3.08851312,113640.0,113630.0,4e-05]
[1754147950137,1.093178,113570.0,113560.0,0.11296334]
[1754147950363,0.32616128,113570.0,113560.0,0.11296334]
[1754147950873,0.33994702,113570.0,113560.0,0.11296334]
[1754147951364,0.33994702,113570.0,113560.0,0.11510334]
[1754147951625,0.33994702,113570.0,113560.0,0.11344329]
[1754147951893,1.85403037,113570.0,113560.0,0.00047995]
[1754147952426,1.88067714,113570.0,113560.0,0.00047995]
[1754147952653,1.88888959,113570.0,113560.0,0.00047995]
[1754147953449,2.38888959,113570.0,113560.0,0.00047995]
[1754147953709,1.87510385,113570.0,113560.0,0.00347995]
[1754147954240,1.54894257,113570.0,113560.0,0.00347995]
[1754147954596,1.87510385,113570.0,113560.0,0.00347995]
[1754147956148,2.2556684,113570.0,113560.0,0.00347995]
[1754147956446,2.27925983,113570.0,113560.0,0.00347995]
[1754147956667,2.30425983,113570.0,113560.0,0.00347995]
[1754147956885,1.433178,113530.0,113520.0,0.0004]
[1754147957101,1.89485928,113530.0,113520.0,0.04550796]
[1754147957733,1.92135528,113530.0,113520.0,0.04550796]
[1754147958017,1.93514668,113530.0,113520.0,0.04550796]
[1754147958256,1.6089854,113530.0,113520.0,0.04550796]
[1754147958470,1.93514668,113530.0,113520.0,0.04550796]
[1754147959041,2.03445834,113530.0,113520.0,0.05050796]
[1754147959304,2.53445834,113530.0,113520.0,0.05050796]
[1754147959508,2.1089854,113530.0,113520.0,0.05050796]
[1754147959734,2.39893834,113530.0,113520.0,0.05050796]
[1754147960003,1.0158074,113530.0,113520.0,0.05050796]
[1754147960464,0.6758074,113530.0,113520.0,0.05050796]
[1754147960704,0.5137914,113530.0,113520.0,0.05050796]
[1754147961122,0.5137914,113530.0,113520.0,0.4759809]
[1754147961540,0.5137914,113530.0,113520.0,0.05050796]
[1754147962203,0.5137914,113530.0,113520.0,0.04550796]
[1754147962427,0.5137914,113530.0,113520.0,0.05050796]
[1754147963123,0.5137914,113530.0,113520.0,0.4759809]
[1754147963871,0.5137914,113530.0,113520.0,0.49342992]
[1754147964089,0.5137914,113530.0,113520.0,0.57762981]
[1754147964302,0.5,113530.0,113520.0,0.71318981]
[1754147964520,0.5,113530.0,113520.0,0.28771687]
[1754147964737,0.5,113530.0,113520.0,0.71318981]
[1754147964975,0.5,113530.0,113520.0,0.29171687]
[1754147965660,0.5,113530.0,113520.0,0.71718981]
[1754147966954,0.49991194,113530.0,113520.0,0.71718981]
[1754147967392,0.49999994,113530.0,113520.0,0.71718981]
[1754147972164,0.49999994,113530.0,113520.0,0.29171687]
[1754147972386,0.49999994,113530.0,113520.0,0.71718981]
[1754147973768,0.13556,113550.0,113530.0,0.01744902]
[1754147974044,0.34,113550.0,113540.0,0.56304294]
[1754147974277,0.34,113550.0,113540.0,0.60707294]
[1754147974559,0.34818115,113550.0,113540.0,0.60707294]
[1754147975044,0.34818115,113550.0,113540.0,0.1816]
[1754147976146,0.3619689,113550.0,113540.0,0.1816]
[1754147976826,0.3619689,113550.0,113540.0,0.1836]
[1754147977534,0.3619689,113550.0,113540.0,0.1856]
[1754147977772,0.8619689,113550.0,113540.0,0.1856]
[1754147978435,0.86815136,113550.0,113540.0,0.1856]
[1754147982723,0.85436361,113550.0,113540.0,0.1856]
[1754147982960,0.85436361,113550.0,113540.0,0.51210586]
[1754147983388,0.35436361,113550.0,113540.0,0.51210586]
[1754147985723,0.01436361,113550.0,113540.0,0.51210586]
[1754147985930,0.02815122,113550.0,113540.0,0.51210586]
[1754147987518,0.02815122,113550.0,113540.0,0.13956]
[1754147988593,0.52815122,113550.0,113540.0,0.13956]
[1754147988795,0.52815122,113550.0,113540.0,0.18036]
[1754147989011,0.52815122,113550.0,113540.0,0.0448]
[1754147989642,0.52815122,113550.0,113540.0,0.004]
[1754147989845,0.32929011,113550.0,113540.0,0.004]
[1754147990063,0.17114418,113560.0,113540.0,0.004]
[1754147990277,0.01378811,113550.0,113540.0,0.004]
[1754147991802,0.01378811,113550.0,113540.0,0.0448]
[1754147992025,0.68029397,113550.0,113540.0,0.004]
[1754147992492,0.35378811,113550.0,113540.0,0.004]
[1754147992721,0.68029397,113550.0,113540.0,0.004]
[1754147992964,0.34,113550.0,113540.0,0.004]
[1754147993410,0.72596729,113550.0,113540.0,0.004]
[1754147993904,1.51168693,113550.0,113540.0,0.002]
[1754147994138,1.83819279,113550.0,113520.0,0.18003796]
[1754147994429,1.83819279,113550.0,113520.0,0.04447796]
[1754147994430,0.13556,113540.0,113520.0,0.04447796]
[1754147994926,0.34,113530.0,113520.0,0.00044796]
[1754147997066,0.74671245,113530.0,113520.0,0.00044796]
[1754147997528,0.74671245,113530.0,113520.0,0.00644796]
[1754147997912,0.74671245,113530.0,113520.0,0.00044796]
[1754147998125,0.66650586,113530.0,113520.0,0.00044796]
[1754147998298,0.66650586,113530.0,113520.0,0.00144796]
[1754147998709,1.75968386,113530.0,113520.0,0.00144796]
[1754148000768,1.45218305,113530.0,113520.0,0.00144796]
[1754148000967,1.77868891,113530.0,113520.0,0.00144796]
[1754148001213,1.8628888,113530.0,113520.0,0.00144796]
[1754148001463,1.53638294,113530.0,113520.0,0.00144796]
[1754148001663,1.77868891,113530.0,113520.0,0.00144796]
[1754148001868,1.79311778,113530.0,113520.0,0.00144796]
[1754148002325,1.77411273,113530.0,113520.0,0.00144796]
[1754148002534,1.77411273,113530.0,113520.0,0.00044796]
[1754148002759,0.70743273,113530.0,113520.0,0.00044796]
[1754148002995,1.60966487,113530.0,113520.0,0.00044796]
[1754148003219,1.80060483,113530.0,113520.0,0.00044796]
[1754148003443,1.47409897,113530.0,113520.0,0.04651796]
[1754148003673,0.51648097,113530.0,113520.0,0.04651796]
[1754148003920,0.51652097,113530.0,113520.0,0.04651796]
[1754148004149,0.49002297,113530.0,113520.0,0.04651796]
[1754148004366,0.81652883,113530.0,113520.0,0.04651796]
[1754148004840,0.42840467,113530.0,113520.0,0.04651796]
[1754148005092,0.42840467,113530.0,113520.0,0.00044796]
[1754148005093,0.49002297,113530.0,113520.0,0.00044796]
[1754148005759,0.49002297,113530.0,113520.0,0.04138796]
[1754148006046,0.49102297,113530.0,113520.0,0.04138796]
[1754148006262,0.35542297,113530.0,113520.0,0.04138796]
[1754148006496,0.49102297,113530.0,113520.0,0.04138796]
[1754148006725,0.35542297,113530.0,113520.0,0.04138796]
[1754148007176,0.35542297,113530.0,113520.0,0.04446796]
[1754148007425,0.01542297,113530.0,113520.0,0.04446796]
[1754148007685,0.4766,113530.0,113520.0,0.04446796]
[1754148007892,0.34923468,113530.0,113520.0,0.04446796]
[1754148008155,0.48483468,113530.0,113520.0,0.04446796]
[1754148008353,0.4766,113530.0,113520.0,0.04446796]
[1754148008989,0.4766,113530.0,113520.0,0.04651796]
[1754148009698,0.341,113530.0,113520.0,0.04651796]
[1754148009888,0.4766,113530.0,113520.0,0.04651796]
[1754148011916,0.47668,113530.0,113520.0,0.04651796]
[1754148015385,0.341,113530.0,113520.0,0.04651796]
[1754148015603,0.4766,113530.0,113520.0,0.04651796]
[1754148016492,0.56079989,113530.0,113520.0,0.04446796]
[1754148016719,0.4766,113530.0,113520.0,0.04446796]
[1754148017176,0.4766,113530.0,113520.0,0.04651796]
[1754148018107,0.4766,113530.0,113520.0,0.04446796]
[1754148018465,0.4766,113530.0,113520.0,0.04138796]
[1754148018931,2.0013868,113530.0,113520.0,0.00044796]
[1754148020255,0.9082088,113530.0,113520.0,0.00044796]
[1754148020473,2.0013868,113530.0,113520.0,0.00044796]
[1754148020715,1.57596252,113530.0,113520.0,0.04138796]
[1754148021160,1.60245752,113530.0,113520.0,0.04138796]
[1754148021626,1.61071401,113530.0,113520.0,0.00044796]
[1754148021837,1.61071401,113530.0,113520.0,0.04138796]
[1754148022060,1.58421901,113530.0,113520.0,0.04138796]
[1754148022706,1.58429901,113530.0,113520.0,0.04138796]
[1754148022926,1.58429901,113530.0,113520.0,0.00044796]
[1754148023178,1.46241137,113530.0,113520.0,0.00044796]
[1754148023392,1.59813137,113530.0,113520.0,0.04138796]
[1754148023606,1.58429901,113530.0,113520.0,0.04138796]
[1754148024782,1.91105258,113530.0,113520.0,0.04138796]
[1754148025285,1.93754758,113530.0,113520.0,0.04138796]
[1754148026964,1.93754758,113530.0,113520.0,0.00044796]
[1754148027177,2.02176722,113530.0,113520.0,0.00044796]
[1754148027766,1.93756733,113530.0,113520.0,0.03912796]
[1754148028639,1.954116,113530.0,113520.0,0.03912796]
[1754148029508,1.818436,113530.0,113520.0,0.03912796]
[1754148029733,1.954116,113530.0,113520.0,0.03912796]
[1754148031736,1.818436,113530.0,113520.0,0.04209796]
[1754148031951,1.47513376,113530.0,113520.0,0.04425796]
[1754148032164,0.51771576,113530.0,113520.0,0.04425796]
[1754148032872,0.49122076,113530.0,113520.0,0.04425796]
[1754148033079,0.51771676,113530.0,113520.0,0.04425796]
[1754148033774,0.49122076,113530.0,113520.0,0.04425796]
[1754148035583,0.35546076,113530.0,113520.0,0.04425796]
[1754148035779,0.49118195,113530.0,113520.0,0.04425796]
[1754148035944,0.35546195,113530.0,113520.0,0.04425796]
[1754148036211,0.49118195,113530.0,113520.0,0.04425796]
[1754148037369,0.50497397,113530.0,113520.0,0.04425796]
[1754148038604,0.49671748,113530.0,113520.0,0.04425796]
[1754148038808,0.50499116,113530.0,113520.0,0.04425796]
[1754148040475,0.36927116,113530.0,113520.0,0.37101153]
[1754148040692,0.01479202,113530.0,113520.0,0.37101153]
[1754148040893,0.15051202,113530.0,113520.0,0.37101153]
[1754148041110,0.49051202,113530.0,113520.0,0.37101153]
[1754148041322,0.35479202,113530.0,113520.0,0.37101153]
[1754148041530,0.49055202,113530.0,113520.0,0.37101153]
[1754148041952,0.48955202,113530.0,113520.0,0.37101153]
[1754148042390,0.48955202,113530.0,113520.0,0.37301153]
[1754148043433,0.35379202,113530.0,113520.0,0.37301153]
[1754148043653,0.48947202,113530.0,113520.0,0.04625796]
[1754148043856,0.47568,113530.0,113520.0,0.37301153]
[1754148044764,0.47568,113530.0,113520.0,0.37501153]
[1754148046926,0.48947032,113530.0,113520.0,0.37501153]
[1754148048733,0.48939032,113530.0,113520.0,0.37501153]
[1754148049155,0.35379032,113530.0,113520.0,0.37501153]
[1754148049366,0.14939032,113530.0,113520.0,0.80341401]
[1754148049587,0.01379032,113530.0,113520.0,0.80341401]
[1754148050012,0.01379032,113530.0,113520.0,0.93905401]
[1754148050448,0.13564,113550.0,113520.0,0.93905401]
[1754148050657,0.01378813,113550.0,113540.0,0.34420259]
[1754148050865,0.01378813,113550.0,113540.0,0.43056248]
[1754148051071,0.01378813,113550.0,113540.0,0.47221248]
[1754148052206,0.01378813,113550.0,113540.0,0.47621248]
[1754148052711,0.01378813,113550.0,113540.0,0.47921248]
[1754148054287,0.14934813,113550.0,113540.0,0.47921248]
[1754148054492,0.13556,113550.0,113540.0,0.47921248]
[1754148055328,0.53558418,113560.0,113540.0,0.47921248]
[1754148055531,0.67114418,113560.0,113550.0,0.36749357]
[1754148055734,0.67114418,113560.0,113550.0,0.36963357]
[1754148057143,0.67114418,113560.0,113550.0,0.37163357]
[1754148057367,0.17114418,113560.0,113550.0,0.37163357]
[1754148057574,0.18493092,113560.0,113550.0,0.37163357]
[1754148058310,0.18493092,113560.0,113550.0,0.37363357]
[1754148059704,0.04937092,113560.0,113550.0,0.70038714]
[1754148059923,0.18493092,113560.0,113550.0,0.70038714]
[1754148060149,0.04937092,113560.0,113550.0,0.70038714]
[1754148060385,0.01378674,113560.0,113550.0,0.80203605]
[1754148061249,0.13556,113570.0,113550.0,0.80203605]
[1754148061466,0.13556,113570.0,113560.0,0.32675357]
[1754148061692,0.03111395,113570.0,113560.0,0.50519357]
[1754148061937,0.03111395,113570.0,113560.0,0.17844]
[1754148062163,1.41993157,113570.0,113550.0,0.004]
[1754148062386,0.13556,113560.0,113540.0,0.46549357]
[1754148062603,0.13556,113560.0,113550.0,0.04074]
[1754148063535,0.13556,113560.0,113550.0,0.04174]
[1754148063969,0.13556,113560.0,113550.0,0.04074]
[1754148064663,0.13556,113560.0,113550.0,0.36749357]
[1754148065087,0.13556,113560.0,113550.0,0.04074]
[1754148065308,0.13556,113560.0,113550.0,0.36749357]
[1754148065536,0.13556,113560.0,113550.0,0.36949357]
[1754148066411,0.1493466,113560.0,113550.0,0.37263357]
[1754148067351,0.1493466,113560.0,113550.0,0.37163357]
[1754148068012,0.1493466,113560.0,113550.0,0.37363357]
[1754148069606,0.1493466,113560.0,113550.0,0.004]
[1754148069607,0.4869066,113560.0,113550.0,0.004]
[1754148069816,0.81366017,113560.0,113550.0,0.004]
[1754148070035,0.4869066,113560.0,113550.0,0.004]
[1754148070477,0.4869066,113560.0,113550.0,0.002]
[1754148072300,0.4869066,113560.0,113550.0,0.001]
[1754148072509,0.4869066,113560.0,113550.0,0.002]
[1754148073386,0.4869066,113560.0,113550.0,0.03956]
[1754148073819,0.47312,113560.0,113550.0,0.03956]
[1754148074030,0.47312,113560.0,113550.0,0.04274]
[1754148077069,0.4869076,113560.0,113550.0,0.04274]
[1754148077971,0.3537876,113560.0,113550.0,0.37163357]
[1754148078171,0.3537876,113560.0,113550.0,0.69838714]
[1754148078410,0.4893076,113560.0,113550.0,0.69838714]
[1754148078661,0.0137876,113560.0,113550.0,0.80003605]
[1754148078871,0.3537876,113560.0,113550.0,0.80003605]
[1754148079739,0.3537876,113560.0,113550.0,0.47328248]
[1754148082040,0.16552861,113570.0,113550.0,0.47328248]
[1754148082199,0.17998975,113570.0,113550.0,0.43254248]
[1754148082472,0.17998975,113570.0,113560.0,0.04074]
[1754148082840,0.17998975,113570.0,113560.0,0.04288]
[1754148083453,0.17998975,113570.0,113550.0,0.19470902]
[1754148083661,0.18098975,113570.0,113550.0,0.05818902]
[1754148084694,0.17998975,113570.0,113550.0,0.05818902]
[1754148085010,0.18098975,113570.0,113550.0,0.05818902]
[1754148086900,0.52098975,113570.0,113560.0,0.03795]
[1754148087126,0.52099051,113570.0,113560.0,0.03795]
[1754148088016,0.51379288,113570.0,113560.0,0.04105]
[1754148088232,0.52099091,113570.0,113560.0,0.04105]
[1754148088496,0.53477741,113570.0,113560.0,0.04105]
[1754148088735,0.52857938,113570.0,113560.0,0.04105]
[1754148088948,0.5347775,113570.0,113560.0,0.04105]
[1754148089190,0.52857938,113570.0,113560.0,0.04105]
[1754148091407,0.52031511,113570.0,113560.0,0.04105]
[1754148099506,0.52031511,113570.0,113560.0,0.04306]
[1754148106898,0.52031511,113570.0,113560.0,0.04105]
[1754148107999,0.84706868,113570.0,113550.0,0.04105]
[1754148108457,1.75993157,113560.0,113550.0,0.03795]
[1754148108680,0.66675357,113560.0,113540.0,0.04105]
[1754148108943,0.80223357,113550.0,113530.0,0.17653]
[1754148109213,0.80223357,113550.0,113530.0,0.04109796]
[1754148110129,1.093178,113540.0,113530.0,0.04109796]
[1754148111469,1.10696771,113540.0,113530.0,0.04409796]
[1754148111695,0.01378971,113540.0,113530.0,0.04409796]
[1754148111921,0.01378971,113540.0,113530.0,0.04109796]
[1754148112581,0.01378971,113540.0,113530.0,0.04309796]
[1754148113695,0.01378971,113540.0,113530.0,0.04709796]
[1754148114355,0.01378971,113540.0,113530.0,0.04910796]
[1754148114993,0.01378971,113540.0,113530.0,0.04510796]
[1754148115634,0.01378971,113540.0,113530.0,0.04810796]
[1754148116310,0.01378971,113540.0,113530.0,0.04299796]
[1754148116558,0.68054328,113540.0,113530.0,0.00504796]
[1754148116789,0.34,113540.0,113530.0,0.00504796]
[1754148117062,0.66675357,113540.0,113530.0,0.00504796]
[1754148117559,0.66675357,113540.0,113530.0,0.00204796]
[1754148117796,1.7661193,113540.0,113530.0,0.00204796]
[1754148118027,1.85031919,113540.0,113530.0,0.00204796]
[1754148118779,1.85031919,113540.0,113530.0,4.796e-05]
[1754148119012,1.85031919,113540.0,113530.0,0.00104796]
[1754148119387,1.87681419,113540.0,113530.0,0.00104796]
[1754148119683,1.87062646,113540.0,113530.0,4.796e-05]
[1754148119933,1.88441815,113540.0,113530.0,4.796e-05]
[1754148120905,1.55766458,113540.0,113530.0,4.796e-05]
[1754148121149,1.88441815,113540.0,113530.0,4.796e-05]
[1754148123295,1.80021826,113540.0,113530.0,4.796e-05]
[1754148123737,1.78642657,113540.0,113530.0,4.796e-05]
[1754148124653,1.78642657,113540.0,113530.0,0.04075796]
[1754148124882,1.459673,113540.0,113530.0,0.04075796]
[1754148125102,1.78642657,113540.0,113530.0,0.04075796]
[1754148126643,1.78642657,113540.0,113530.0,4.796e-05]
[1754148127097,1.87062646,113540.0,113530.0,4.796e-05]
[1754148127317,1.53062646,113540.0,113530.0,4.796e-05]
[1754148128051,1.66614646,113540.0,113530.0,4.796e-05]
[1754148128317,1.6799377,113540.0,113530.0,4.796e-05]
[1754148129747,0.9267597,113540.0,113530.0,4.796e-05]
[1754148129988,2.0199377,113540.0,113530.0,0.04075796]
[1754148130421,2.02611418,113540.0,113530.0,0.04075796]
[1754148131184,2.02611415,113540.0,113530.0,0.04075796]
[1754148133720,2.02611415,113540.0,113530.0,8.796e-05]
[1754148134169,2.02611415,113540.0,113530.0,0.04079796]
[1754148134435,1.69936058,113540.0,113530.0,0.04079796]
[1754148134654,1.81370282,113540.0,113530.0,0.04079796]
[1754148134880,1.82194494,113540.0,113530.0,0.04079796]
[1754148135109,1.81370282,113540.0,113530.0,0.04389796]
[1754148135334,1.82194518,113540.0,113530.0,0.04389796]
[1754148136049,1.84844018,113540.0,113530.0,0.04389796]
[1754148137251,1.89690176,113540.0,113530.0,0.04079796]
[1754148137498,1.89450176,113540.0,113530.0,0.04079796]
[1754148137722,1.89450176,113540.0,113530.0,8.796e-05]
[1754148137946,1.90997929,113540.0,113530.0,8.796e-05]
[1754148138383,1.92649375,113540.0,113530.0,8.796e-05]
[1754148138893,1.92749375,113540.0,113530.0,8.796e-05]
[1754148139988,1.92849375,113540.0,113530.0,8.796e-05]
[1754148140183,1.89922498,113540.0,113530.0,8.796e-05]
[1754148140912,1.91301674,113540.0,113530.0,8.796e-05]
[1754148143849,1.94228551,113540.0,113530.0,8.796e-05]
[1754148144042,2.33761228,113540.0,113530.0,8.796e-05]
[1754148144267,2.49996989,113540.0,113530.0,8.796e-05]
[1754148144726,2.52496989,113540.0,113530.0,8.796e-05]
[1754148144957,2.54241891,113540.0,113530.0,8.796e-05]
[1754148145181,2.54141891,113540.0,113530.0,8.796e-05]
[1754148145399,2.56517278,113540.0,113530.0,8.796e-05]
[1754148145620,2.5671945,113540.0,113530.0,8.796e-05]
[1754148146282,2.5661945,113540.0,113530.0,8.796e-05]
[1754148146714,2.5681945,113540.0,113530.0,8.796e-05]
[1754148146933,2.55168004,113540.0,113530.0,8.796e-05]
[1754148147154,2.56620619,113540.0,113530.0,8.796e-05]
[1754148147420,2.5780003,113540.0,113530.0,8.796e-05]
[1754148147763,0.96338259,113540.0,113530.0,8.796e-05]
[1754148147982,2.05456059,113540.0,113530.0,8.796e-05]
[1754148148197,2.23070996,113540.0,113530.0,8.796e-05]
[1754148148411,2.23270996,113540.0,113530.0,8.796e-05]
[1754148148618,2.23271404,113540.0,113530.0,8.796e-05]
[1754148149013,2.50296467,113540.0,113530.0,8.796e-05]
[1754148149269,2.67911404,113540.0,113530.0,8.796e-05]
[1754148149482,2.64984527,113540.0,113530.0,8.796e-05]
[1754148149699,1.3805179,113540.0,113530.0,8.796e-05]
[1754148149938,2.47367518,113540.0,113530.0,8.796e-05]
[1754148151065,2.47366219,113540.0,113530.0,8.796e-05]
[1754148151284,2.64981156,113540.0,113530.0,8.796e-05]
[1754148152008,2.47366219,113540.0,113530.0,8.796e-05]
[1754148152900,2.64982467,113540.0,113530.0,8.796e-05]
[1754148153836,2.97657824,113540.0,113530.0,8.796e-05]
[1754148154068,2.80042887,113540.0,113530.0,8.796e-05]
[1754148154494,2.97657824,113540.0,113530.0,8.796e-05]
[1754148154912,2.80042887,113540.0,113530.0,8.796e-05]
[1754148155113,2.77666143,113540.0,113530.0,8.796e-05]
[1754148155373,2.44990786,113540.0,113530.0,8.796e-05]
[1754148155602,1.32530758,113540.0,113530.0,8.796e-05]
[1754148155814,2.55400558,113540.0,113530.0,8.796e-05]
[1754148157542,2.75392239,113540.0,113530.0,8.796e-05]
[1754148159181,2.74012828,113540.0,113530.0,8.796e-05]
[1754148159334,2.71636084,113540.0,113530.0,8.796e-05]
[1754148159553,2.56397891,113540.0,113530.0,8.796e-05]
[1754148159773,2.54021147,113540.0,113530.0,8.796e-05]
[1754148160863,1.44703347,113540.0,113530.0,8.796e-05]
[1754148161072,2.54021147,113540.0,113530.0,8.796e-05]
[1754148161542,2.54021204,113540.0,113530.0,8.796e-05]
[1754148161781,2.55400568,113540.0,113530.0,8.796e-05]
[1754148162010,2.55400568,113540.0,113530.0,0.04203796]
[1754148162677,2.52900568,113540.0,113530.0,0.04203796]
[1754148162913,2.52900568,113540.0,113530.0,0.04716796]
[1754148162914,2.35257508,113540.0,113530.0,0.04716796]
[1754148163337,2.46309508,113540.0,113530.0,0.04716796]
[1754148163570,2.44930144,113540.0,113530.0,0.04716796]
[1754148164045,2.42430144,113540.0,113530.0,0.04716796]
[1754148164286,2.31378144,113540.0,113530.0,0.04716796]
[1754148164535,2.53350133,113540.0,113530.0,0.04716796]
[1754148165034,2.53350133,113540.0,113530.0,0.04518796]
[1754148165265,2.53350133,113540.0,113530.0,8.796e-05]
[1754148165266,3.10765874,113540.0,113530.0,8.796e-05]
[1754148165502,2.9069726,113540.0,113530.0,8.796e-05]
[1754148165772,2.58021903,113540.0,113530.0,8.796e-05]
[1754148166010,2.58021903,113540.0,113530.0,0.04203796]
[1754148166492,1.48704103,113540.0,113530.0,0.04203796]
[1754148167034,2.58021903,113540.0,113530.0,0.04203796]
[1754148167270,2.44469903,113540.0,113530.0,0.04203796]
[1754148167514,2.42430144,113540.0,113530.0,0.04716796]
[1754148167738,2.28878144,113540.0,113530.0,0.04716796]
[1754148167963,2.43805434,113540.0,113530.0,0.04716796]
[1754148169364,2.49232302,113540.0,113530.0,0.04203796]
[1754148169612,2.57652291,113540.0,113530.0,0.04203796]
[1754148169839,2.60105968,113540.0,113530.0,8.796e-05]
[1754148170755,2.52652291,113540.0,113530.0,0.04203796]
[1754148171491,2.52652291,113540.0,113530.0,0.04518796]
[1754148171741,2.44232302,113540.0,113530.0,0.04716796]
[1754148171980,2.41305434,113540.0,113530.0,0.04716796]
[1754148172497,2.38805434,113540.0,113530.0,0.04716796]
[1754148173257,2.39405213,113540.0,113530.0,0.04716796]
[1754148173729,2.41310271,113540.0,113530.0,0.04716796]
[1754148173961,2.45044454,113540.0,113530.0,0.04716796]
[1754148174186,0.34,113530.0,113520.0,2e-08]
[1754148174408,0.34,113510.0,113500.0,0.39455135]
[1754148174636,0.47548,113510.0,113500.0,0.39653135]
[1754148175154,0.48927358,113510.0,113500.0,0.39653135]
[1754148175394,0.48927358,113510.0,113500.0,0.43640389]
[1754148176363,0.48927358,113510.0,113500.0,0.48042389]
[1754148176609,0.48927358,113510.0,113500.0,0.41262611]
[1754148177088,0.14927358,113510.0,113500.0,0.41262611]
[1754148177543,0.48927358,113510.0,113500.0,0.046]
[1754148177996,0.48927358,113510.0,113500.0,0.047]